Cogmind - Beta 14 @@@ ROGUE MODE // 2024.10.02 @ 10:48:51 Player: Corvi Result: Destroyed by Shrapnel Trap Performance ------------- Evolutions (0) 0 Regions Visited (3) 600 Robots Destroyed (28) 140 Value Destroyed (668) 668 Prototype IDs (1) 20 Alien Tech Used (0) 0 Bonus (0) 0 TOTAL SCORE: 1428 Bonus ------- None Cogmind --------- Core Integrity 0/250 Matter 300/300 Energy 121/125 System Corruption 0% Temperature Cool (2) Movement Treading (160) Location -10/Subcaves Parts ------- > --- POWER (1) -------- Light Ion Engine > --- PROPULSION (2) --- Light Treads Spiked Treads > --- UTILITY (2) ------ Small Storage Unit Makeshift Light Armor Plating > --- WEAPON (2) ------- Heavy Riot Gun Subdweller Shrapnel Launcher > --- INVENTORY (8) ---- Light Ion Engine Improved Flight Unit Improved Flight Unit Improved Flight Unit Makeshift System Shield Battle Rifle Grenade Launcher Mining Laser Peak State ------------ > --- POWER ------------ Light Ion Engine > --- PROPULSION ------- Light Treads Spiked Treads > --- UTILITY ---------- Small Storage Unit Makeshift Light Armor Plating > --- WEAPON ----------- Heavy Riot Gun Subdweller Shrapnel Launcher > --- INVENTORY -------- Light Ion Engine Light Treads Improved Flight Unit Improved Flight Unit Improved Flight Unit Battle Rifle Grenade Launcher Mining Laser [Rating: 16] Favorites ----------- Power Light Ion Engine Engine Light Ion Engine Propulsion Light Treads Treads Light Treads Flight Unit Improved Flight Unit Utility Small Storage Unit Storage Small Storage Unit Processor Visual Processing Unit Protection Makeshift Light Armor Plating Weapon Heavy Riot Gun Energy Gun Heavy Riot Gun Ballistic Gun Assault Rifle Launcher Grenade Launcher Special Weapon Mining Laser Build | -11 -10 -10 -10 ------- Run | Yrd Mat Min Sub Slots Evolved . | . . . . Power . | . . . . Propulsion . | . . . . Utility . | . . . . Weapon . | . . . . Parts Attached 25 | 6 6 1 12 Power 3 | 1 . . 2 Engine 3 | 1 . . 2 Core . | . . . . Reactor . | . . . . Propulsion 5 | 2 2 . 1 Treads 4 | 2 1 . 1 Leg . | . . . . Wheel . | . . . . Hover . | . . . . Flight 1 | . 1 . . Utility 3 | 1 1 . 1 Device . | . . . . Storage 1 | 1 . . . Processor 1 | . 1 . . Hackware . | . . . . Protection 1 | . . . 1 Artifact . | . . . . Weapon 14 | 2 3 1 8 Energy Gun 3 | 1 1 . 1 Energy Cannon . | . . . . Ballistic Gun 4 | 1 1 . 2 Ballistic Cannon . | . . . . Launcher 4 | . 1 . 3 Special Weapon 3 | . . 1 2 Impact Weapon . | . . . . Slashing Weapon . | . . . . Piercing Weapon . | . . . . Special Melee Weapon . | . . . . Unidentified Prototypes 1 | . 1 . . Parts Lost . | . . . . Power . | . . . . Propulsion . | . . . . Utility . | . . . . Weapon . | . . . . Highest Loss Streak . | . . . . To Critical Strikes . | . . . . Average Slot Usage (%) 99 | . 95 100 100 Engine 14 | . 14 14 14 Treads 28 | . 28 28 28 Storage 14 | . 14 14 14 Processor 4 | . 9 14 3 Protection 9 | . . . 10 Energy Gun 11 | . 14 14 11 Ballistic Gun 6 | . 13 3 4 Launcher 9 | . . . 11 Peak Build Rating 16 | 6 10 9 16 Average Rating 12 | 4 7 9 13 On Entrance 6 | . 6 9 9 Naked Turns . | . . . . Heaviest Build 24 | 12 13 12 24 Greatest Support 40 | 40 40 20 40 Greatest Overweight (x) 3 | 1 3 . . Average Overweight (x) . | . . . . Largest Inventory Capacity 8 | 8 8 8 8 Average Capacity 7 | 6 8 8 8 Most Carried 8 | 4 8 8 8 Average Carried 7 | 1 5 8 7 Final Capacity 8 | 8 8 8 8 Final Carried 8 | 4 8 8 8 Class Distribution -------------------- 100% | Mutant Dominant Class ---------------- Mutant | -10/Materials Mutant | -10/Mines Mutant | -10/Subcaves Resources | -11 -10 -10 -10 ----------- Run | Yrd Mat Min Sub Matter Collected 872 | 256 47 . 569 Remotely . | . . . . Salvage Created 531 | 70 57 . 404 Parts 48 | 2 12 . 34 Haulers Intercepted . | . . . . Recyclers Shooed 1 | 1 . . . Parts Field Recycled . | . . . . Retrieved Matter . | . . . . Parts Self-Destructed 12 | . . . 12 Prevented 1 | . . . 1 Kills | -11 -10 -10 -10 ------- Run | Yrd Mat Min Sub Combat Hostiles Destroyed 25 | . 6 . 19 Guns 4 | . 1 . 3 AOE 21 | . 5 . 16 Classes Destroyed 4 | 1 2 . 1 Recycler 1 | 1 . . . Watcher 2 | . 2 . . Swarmer 13 | . 6 . 7 Subdweller 12 | . . . 12 Best Kill Streak 6 | 1 6 . 4 Combat Bots Only 5 | . 5 . 4 Max Kills in Single Turn 3 | 1 3 . 2 Gunslinging . | . . . . Exploded 2 | . 2 . 2 Melee . | . . . . Uniques/NPCs Destroyed . | . . . . Combat | -11 -10 -10 -10 -------- Run | Yrd Mat Min Sub Hostile Shots Fired 62 | . 15 . 47 Missed 20 | . 3 . 17 Damage Taken 814 | . 99 . 715 Core 255 | . 22 . 233 Absorbed by Shields . | . . . . Core Remaining (%) 100 | 100 . . . Volleys Fired 57 | . 8 5 44 Largest 2 | . 2 1 2 Hottest 100 | . 60 100 100 Shots Fired 101 | . 14 5 82 Gun 61 | . 12 . 49 Cannon . | . . . . Launcher 32 | . 2 . 30 Special 8 | . . 5 3 Kinetic 33 | . 6 . 27 Thermal 8 | . . 5 3 Explosive 31 | . 2 . 29 Electromagnetic 29 | . 6 . 23 Robot Hit Streak 14 | . 3 . 14 Robot Miss Streak 2 | . 1 . 2 Penetration Max . | . . . . Secondary Targets . | . . . . Shots Hit Robots 55 | . 6 . 49 Core Hits 46 | . 10 . 36 Critical Kills . | . . . . Critical Parts Destroyed . | . . . . Critical Strikes . | . . . . Melee Attacks . | . . . . Impact . | . . . . Slashing . | . . . . Piercing . | . . . . Sneak Attacks . | . . . . Combat Hostiles . | . . . . Follow-up Attacks . | . . . . Damage Inflicted 2314 | 8 391 . 1915 Guns 534 | . 80 . 454 Cannons . | . . . . Explosions 1772 | . 311 . 1461 Melee . | . . . . Ramming 8 | 8 . . . Kinetic 291 | . 39 . 252 Thermal 220 | . 220 . . Explosive 1487 | . 91 . 1396 Electromagnetic 308 | . 41 . 267 Impact . | . . . . Slashing . | . . . . Piercing . | . . . . Highest Corruption . | . . . . Average Corruption . | . . . . Corruption Purged . | . . . . Corruption Blocked . | . . . . Overload Shots . | . . . . Overflow Damage 46 | . 42 . 4 Projectiles . | . . . . Explosions 46 | . 42 . 4 Melee . | . . . . Knockbacks . | . . . . Impact . | . . . . Kinetic . | . . . . Secondary . | . . . . Self-Inflicted Damage 74 | . . . 74 Shots 3 | . . . 3 Rammed 1 | 1 . . . Targets Rammed 2 | 2 . . . Kicked . | . . . . Crushed 1 | 1 . . . Highest Temperature 100 | . . 100 1 Average Temperature 39 | . . 50 1 Received Heat Transfer 126 | . . . 126 Siege Activations . | . . . . Robots Corrupted . | . . . . Combat Hostiles . | . . . . Parts Fried . | . . . . Impact Corruptions . | . . . . Robots Melted . | . . . . Combat Hostiles . | . . . . Parts Melted . | . . . . Heat Transferred 200 | . 200 . . Parts Sabotaged . | . . . . Parts Stolen . | . . . . Parts Stripped . | . . . . Power Chain Reactions . | . . . . Alert | -11 -10 -10 -10 ------- Run | Yrd Mat Min Sub Peak Influence 278 | 5 278 35 . Initial 34 | . 3 34 . Average 142 | 1 187 34 . Maximum Alert Level 1 | . 1 . . Low Security (%) 51 | 100 34 100 . Level 1 48 | . 65 . . Level 2 . | . . . . Level 3 . | . . . . Level 4 . | . . . . Level 5 . | . . . . High Security . | . . . . Max Security . | . . . . Squads Dispatched 1 | . 1 . . Investigation 1 | . 1 . . Extermination . | . . . . Reinforcement . | . . . . Assault . | . . . . Garrison . | . . . . Intercept . | . . . . Searches Triggered . | . . . . Construction Impeded . | . . . . Haulers Reinforced . | . . . . Active Scanning Responses . | . . . . Cargo Convoy Interrupts . | . . . . Stealth | -11 -10 -10 -10 --------- Run | Yrd Mat Min Sub Distress Signals 1 | . 1 . . Communications Jammed . | . . . . Distress Signals . | . . . . Times Spotted 25 | . 8 . 17 Peak Tracking Total 7 | . 7 . 5 Tactical Retreats 3 | . 1 . 2 Traps | -11 -10 -10 -10 ------- Run | Yrd Mat Min Sub Traps Triggered 2 | . . . 2 Indirectly . | . . . . Trap Hack Attempts . | . . . . Triggered . | . . . . Disarmed . | . . . . Reprogrammed . | . . . . Reused . | . . . . Traps Extracted . | . . . . Installed . | . . . . Triggered 1 | . . . 1 Machines | -11 -10 -10 -10 ---------- Run | Yrd Mat Min Sub Machines Disabled 2 | . 2 . . Max in Single Turn 2 | . 2 . . Machines Repaired . | . . . . Machines Dismantled . | . . . . Machines Sabotaged . | . . . . Overloaded Fab Kills . | . . . . Hacking | -11 -10 -10 -10 --------- Run | Yrd Mat Min Sub Machines Accessed 6 | . 4 . 2 Terminals 3 | . 3 . . Fabricators . | . . . . Repair Stations 1 | . 1 . . Recycling Units . | . . . . Scanalyzers . | . . . . Garrison Access . | . . . . Total Hacks 15 | . 12 . 3 Successful 7 | . 4 . 3 Failed 8 | . 8 . . Catastrophic 1 | . 1 . . Database Lockouts . | . . . . Manual 6 | . 6 . . Terminals 11 | . 11 . . Fabricators . | . . . . Repair Stations 1 | . 1 . . Recycling Units . | . . . . Scanalyzers . | . . . . Garrison Access . | . . . . Terminal Hacks 6 | . 3 . 3 Record 1 | . . . 1 Robot Analysis 2 | . 2 . . Open Door 1 | . . . 1 Hauler Manifests 1 | . 1 . . Release Object 1 | . . . 1 Fabricator Hacks . | . . . . Repair Station Hacks . | . . . . Recycling Unit Hacks . | . . . . Scanalyzer . | . . . . Garrison Access Hacks . | . . . . Unauthorized Hacks 1 | . 1 . . Terminals 1 | . 1 . . Botnet 1 | . 1 . . Fabricators . | . . . . Repair Stations . | . . . . Recycling Units . | . . . . Scanalyzers . | . . . . Garrison Access . | . . . . Data Cores Recovered . | . . . . Used . | . . . . Hacking Detections 2 | . 2 . . Full Trace Events 1 | . 1 . . Feedback Events . | . . . . Feedback Blocked . | . . . . Robot Schematics Acquired . | . . . . Robots Built . | . . . . Authchips . | . . . . Time . | . . . . Total Robot Build Rating . | . . . . Part Schematics Acquired . | . . . . Parts Built . | . . . . Authchips . | . . . . Time . | . . . . Total Part Build Rating . | . . . . Parts Repaired . | . . . . Time . | . . . . Parts Recycled . | . . . . Recycled Matter . | . . . . Retrieved Matter . | . . . . Retrieved Components . | . . . . Parts Scanalyzed . | . . . . Part Schematics Acquired . | . . . . Parts Damaged . | . . . . Bothacking | -11 -10 -10 -10 ------------ Run | Yrd Mat Min Sub Used RIF Installer . | . . . . Robots Hacked . | . . . . Non-combat . | . . . . Combat . | . . . . Robot Hacks Applied . | . . . . Relay Couplers Released . | . . . . Fabnet Peak Effective % . | . . . . Robots Rewired . | . . . . Allies Hacked . | . . . . Hacks Repelled . | . . . . Allies | -11 -10 -10 -10 -------- Run | Yrd Mat Min Sub Total Allies . | . . . . Largest Group . | . . . . Highest-Rated Group . | . . . . Highest-Rated Ally . | . . . . Total Orders . | . . . . Ally Attacks . | . . . . Total Damage . | . . . . Kills . | . . . . Allies Corrupted . | . . . . Allies Melted . | . . . . Intel | -11 -10 -10 -10 ------- Run | Yrd Mat Min Sub Robot Analysis Total 2 | . 2 . . Derelict Logs Recovered . | . . . . Drone Launches . | . . . . Drone Recoveries . | . . . . Exploration | -11 -10 -10 -10 ------------- Run | Yrd Mat Min Sub Turns Passed 3293 | 122 479 41 2651 Spaces Moved 1911 | 71 270 13 1557 Core 11 | 10 1 . . Treads 1900 | 61 269 13 1557 Legs . | . . . . Wheels . | . . . . Hover . | . . . . Flight . | . . . . Fastest Speed 50 | 50 160 160 160 Average Speed 159 | 148 160 160 160 Slowest Speed 200 | 160 200 160 160 Overloaded Moves . | . . . . Propulsion Burnouts . | . . . . Robots Hopped . | . . . . Cave-ins Triggered . | . . . . Exploration Rate (%) 31 | 5 48 3 68 Regions Visited 3 Branch Regions 2 Pre-discovered Areas . | . . . . Known Exits Taken . | . . . . Unknown Exits Taken 3 | 1 1 1 . Scrap Searched 4 | . . . 4 Spaces Dug . | . . . . Terrain Destroyed 212 | . 31 3 178 Melee . | . . . . Projectile 3 | . . 3 . AOE 209 | . 31 . 178 Terrain Rammed . | . . . . Walls Destroyed . | . . . . Machines Disabled . | . . . . Actions | -11 -10 -10 -10 --------- Run | Yrd Mat Min Sub Total 2033 | 84 302 18 1629 Wait 10 | . 7 . 3 Move 1908 | 70 269 12 1557 Hop . | . . . . Pick Up 16 | 5 7 . 4 Fast Attach 13 | 6 3 . 4 Attach 1 | . . . 1 Detach . | . . . . Swap 11 | . 3 1 7 Drop 14 | 1 5 . 8 Fire 57 | . 8 5 44 Melee . | . . . . Ram . | . . . . Kick . | . . . . Crush 2 | 2 . . . Escape Stasis . | . . . . Rewire . | . . . . Trap . | . . . . Miscellaneous 1 | . . . 1 Route ------- -11/Scrapyard -10/Materials (discovered 2 exits: [*Mat] / [*Min]) -10/Mines -10/Subcaves (discovered 2 exits: [*Mat] / [*Rec]) History --------- Turn | Location | Event 7 | -11/Scrapyard | Discovered new exit (range 15) 123 | -11/Scrapyard | Entered Materials 306 | -10/Materials | Build established: Mutant 377 | -10/Materials | Discovered new exit (range 11) 575 | -10/Materials | Discovered new exit (range 9) 602 | -10/Materials | Entered Mines 633 | -10/Mines | Discovered new exit (range 4) 643 | -10/Mines | Entered Subcaves 755 | -10/Subcaves | Discovered new exit (range 6) 1190 | -10/Subcaves | Core integrity fell below 50% 1641 | -10/Subcaves | A swath of the cavern ceiling suddenly collapsed 1939 | -10/Subcaves | Released subatomizers from SUBCON Basin 2268 | -10/Subcaves | Ambushed by Subdweller buried in earth 2294 | -10/Subcaves | Core integrity fell below 20% 2405 | -10/Subcaves | Shifting Twisted Machinery released Barrage Gun 2501 | -10/Subcaves | Discovered new exit (range 10) 2539 | -10/Subcaves | A swath of the cavern ceiling suddenly collapsed 3294 | -10/Subcaves | Destroyed by Shrapnel Trap Last Messages --------------- The unstable cave ceiling collapses. Acquired 53 matter. Barrage Gun falls loose from the Twisted Machinery. Acquired 56 matter. Acquired 59 matter. EXIT=FOUND A swath of the cavern ceiling suddenly collapses. Acquired 20 matter. Sub. Power Source shoots sparks and powers down. Dropped Broken Sub. Power Source. Acquired Sub. Shrapnel Launcher. 66-Z51(R) destroyed. Acquired 40 matter. Dropped Lgt. Treads. Acquired Mak. System Shield. Acquired 10 matter. Triggered Piercing Trap. Spikes shoot up from the floor. Triggered Shrapnel Trap. An expanding cloud of shrapnel blasts out in all directions. Map ----- +----------------------------------------------------+ | | | | | | | | | | | | | ?????????????????????????????????????????????????? | | ?????????????????????????????????????????????????? | | ?????????????????????????????????????????????????? | | ?????????????????????????????????????????????????? | | ?????????????????????????????????????????????????? | | ?????????????????????????????????????????????????? | | ?????????????????????????????????????????????????? | | ?????????????????????????????????????????????????? | | ?????????????????????????????????????????????????? | | ?????????????????????????????????????????????????? | | ?????????????????????????????????????????????????? | | ?????????????????????????????????????????????????? | | ?????????????????????????????????????????????????? | | ?????????????????????????????????????????????????? | | ?????????????????????????????????????????????????? | | ??????????????????????##?????????????????????????? | | ????????????????????### ###??????????????????????? | | ????????????????????# ^ ##?????????????????????? | | ???????????????????## #?????????????????????? | | ??????????????????## @ #?????????????????????? | | ??????????????????# #?????????????????????? | | ????????#####?????## ^ #?????????????????????? | | ????????# ##?????# ## #?????????????????????? | | ????????# ##????# ?## ##?????????????????????? | | ?????????# ##???#?## #??????????????????????? | | ?????????# ##????# #??????????????????????? | | ????????## #????# #??????????????????????? | | ????????# ## #????# "#??????????????????????? | | ????????# #?# #????#^ *%#??????????????????????? | | ????????## ###########=% #??????????????????????? | | ?????????# ## # ## # ##??####???????????????? | | ????????## "#??# ##??????????????? | | ????????# *&=##?# #####?####?????? | | ????#####" ## !%& ### # ### # ##???? | | ????# # " ### ## #" "## ???? | | ????# ### ## ## ## #???? ##??? | | ????# ## #?## ##??????# #??? | | ????# #" ##?# ####??## #### | | ????## ## #?##### ##?# ## # | | ????? # #?????# < ### | | ????" ## ### ##?????# # # # ## | | ???""" ?# ##?### ##????### ## #### | | ???" ""### ##????## ##????# #### ## ##??? | | ??" "#### ##?????### ####?## #?########???? | +----------------------------------------------------+ Best States ------------- Heat Dissipation 25 Energy Generation 15 Energy Capacity 200 Matter Stores 300 Matter Capacity 300 Sight Range 18 Terrain Scan Density 10 Armor Coverage 100 Evasion (%) 40 Recoil Reduction 2 Item Schematics ----------------- None Robot Schematics ------------------ None Fabricated ------------ Nothing Alien Tech Used ----------------- None Achievements -------------- None Challenges ------------ None Game ------ Seed LightningNetworkExtractor Manual? 0 Play Time 00:21:44 Cumulative 43.6 hours Start 2024.10.02 @ 10:27:12 End 2024.10.02 @ 10:48:51 Sessions 1 Manual Loads 0 Difficulty Rogue Special Mode None Game No. 51 Rogue 51 Adventurer 0 Explorer 0 Win Type - Total 0 Types 0/0/0/0/0/0/0/0/0 Lore% 28 Gallery% 39 Achievement% 35 Wizard Run 0 Options --------- Layout 0 ASCII 0 Keyboard 0 Movement Arrows Keybinds 0 Fullscreen 1 Font 18/SmallcapsGlow Map View 76x50 Zoom Use 0% Tactical HUD 0 Map Filters NONE Filters NONE Steam 0 RUN: 8aede8ee-13ff-4ed9-bc10-dd4cd6f0cfe0